fUST/lending_fUST_20260523
["ID","MTS","AMOUNT","RATE_DAILY","PERIOD"]
[422848252,1779522644000,-511.26,8.493e-05,2]
[422848298,1779522644000,-500.0,8.493e-05,2]
[422848248,1779522644000,-684.52,8.493e-05,2]
[422848268,1779522644000,-500.0,8.493e-05,2]
[422848184,1779522644000,-521.99,8.493e-05,2]
[422848206,1779522644000,-500.0,8.493e-05,2]
[422848210,1779522644000,-1237.95,8.493e-05,2]
[422848293,1779522644000,-500.0,8.493e-05,2]
[422848306,1779522644000,-500.0,8.493e-05,2]
[422848198,1779522644000,-531.93,8.493e-05,2]
[422848162,1779522644000,-2276.527,8.493e-05,2]
[422848173,1779522644000,-546.66,8.493e-05,2]
[422848187,1779522644000,-500.0,8.493e-05,2]
[422848239,1779522644000,-760.63,8.493e-05,2]
[422848183,1779522644000,-1669.62,8.493e-05,2]
[422848254,1779522644000,-1188.89,8.493e-05,2]
[422848281,1779522644000,-930.87,8.493e-05,2]
[422848193,1779522644000,-500.0,8.493e-05,2]
[422848235,1779522644000,-500.0,8.493e-05,2]
[422848167,1779522644000,-251.05420784,8.493e-05,2]
[422848259,1779522644000,-500.0,8.493e-05,2]
[422848165,1779522644000,-661.5754,8.493e-05,2]
[422848180,1779522644000,-500.0,8.493e-05,2]
[422848202,1779522644000,-1159.16,8.493e-05,2]
[422848225,1779522644000,-500.0,8.493e-05,2]
[422848265,1779522644000,-924.25,8.493e-05,2]
[422848276,1779522644000,-2455.94,8.493e-05,2]
[422848278,1779522644000,-500.0,8.493e-05,2]
[422848285,1779522644000,-500.0,8.493e-05,2]
[422848291,1779522644000,-500.0,8.493e-05,2]
[422848295,1779522644000,-500.0,8.493e-05,2]
[422848257,1779522644000,-500.0,8.493e-05,2]
[422848169,1779522644000,-500.0,8.493e-05,2]
[422848182,1779522644000,-521.15,8.493e-05,2]
[422848219,1779522644000,-500.0,8.493e-05,2]
[422848255,1779522644000,-500.0,8.493e-05,2]
[422848274,1779522644000,-500.0,8.493e-05,2]
[422848270,1779522644000,-572.30763612,8.493e-05,2]
[422848195,1779522644000,-500.0,8.493e-05,2]
[422848215,1779522644000,-500.0,8.493e-05,2]
[422848221,1779522644000,-551.16,8.493e-05,2]
[422848244,1779522644000,-500.0,8.493e-05,2]
[422848304,1779522644000,-1044.87,8.493e-05,2]
[422848185,1779522644000,-500.0,8.493e-05,2]
[422848189,1779522644000,-500.0,8.493e-05,2]
[422848171,1779522644000,-500.0,8.493e-05,2]
[422848261,1779522644000,-1397.34,8.493e-05,2]
[422848200,1779522644000,-500.0,8.493e-05,2]
[422848212,1779522644000,-500.0,8.493e-05,2]
[422848322,1779522644000,-500.0,8.493e-05,2]
[422848326,1779522644000,-500.0,8.493e-05,2]
[422848352,1779522644000,-601.61,8.493e-05,2]
[422848378,1779522644000,-823.17,8.493e-05,2]
[422848324,1779522644000,-700.31,8.493e-05,2]
[422848334,1779522644000,-1170.48,8.493e-05,2]
[422848368,1779522644000,-588.33,8.493e-05,2]
[422848346,1779522644000,-500.0,8.493e-05,2]
[422848370,1779522644000,-500.0,8.493e-05,2]
[422848316,1779522644000,-773.34,8.493e-05,2]
[422848344,1779522644000,-549.99,8.493e-05,2]
[422848350,1779522644000,-500.0,8.493e-05,2]
[422848372,1779522644000,-500.0,8.493e-05,2]
[422848382,1779522644000,-500.0,8.493e-05,2]
[422848318,1779522644000,-583.52,8.493e-05,2]
[422848314,1779522644000,-500.0,8.493e-05,2]
[422848364,1779522644000,-500.0,8.493e-05,2]
[422848380,1779522644000,-500.0,8.493e-05,2]
[422848328,1779522644000,-880.84,8.493e-05,2]
[422848332,1779522644000,-500.0,8.493e-05,2]
[422848356,1779522644000,-500.0,8.493e-05,2]
[422848336,1779522644000,-936.85,8.493e-05,2]
[422848374,1779522644000,-500.0,8.493e-05,2]
[422848354,1779522644000,-1062.93,8.493e-05,2]
[422848348,1779522644000,-2347.77,8.493e-05,2]
[422848358,1779522644000,-500.0,8.493e-05,2]
[422848287,1779522644000,-500.0,8.493e-05,2]
[422848366,1779522644000,-500.0,8.493e-05,2]
[422848342,1779522644000,-603.47,8.493e-05,2]
[422848360,1779522644000,-500.0,8.493e-05,2]
[422848330,1779522644000,-627.4,8.493e-05,2]
[422848213,1779522644000,-500.0,8.493e-05,2]
[422848266,1779522644000,-1873.78,8.493e-05,2]
[422848302,1779522644000,-3771.01,8.493e-05,2]
[422848175,1779522644000,-805.78,8.493e-05,2]
[422848188,1779522644000,-973.74,8.493e-05,2]
[422848204,1779522644000,-500.0,8.493e-05,2]
[422848197,1779522644000,-1019.6,8.493e-05,2]
[422848340,1779522644000,-903.24,8.493e-05,2]
[422848227,1779522644000,-670.18,8.493e-05,2]
[422848263,1779522644000,-500.0,8.493e-05,2]
[422848312,1779522644000,-1941.31,8.493e-05,2]
[422848186,1779522644000,-550.5,8.493e-05,2]
[422848208,1779522644000,-500.0,8.493e-05,2]
[422848223,1779522644000,-500.0,8.493e-05,2]
[422848242,1779522644000,-1624.28,8.493e-05,2]
[422848388,1779522644000,-2673.23,8.493e-05,2]
[422848246,1779522644000,-1479.12,8.493e-05,2]
[422848384,1779522644000,-2784.25,8.493e-05,2]
[422848362,1779522644000,-532.29,8.493e-05,2]
[422848320,1779522644000,-500.0,8.493e-05,2]
[422848386,1779522644000,-825.75,8.493e-05,2]
[422848338,1779522644000,-500.0,8.493e-05,2]
[422848237,1779522644000,-500.0,8.493e-05,2]
[422848229,1779522644000,-476.2487105,8.493e-05,2]
[422848191,1779522644000,-500.0,8.493e-05,2]
[422848308,1779522644000,-553.08,8.493e-05,2]
[422848296,1779522644000,-500.0,8.493e-05,2]
[422848376,1779522644000,-500.0,8.493e-05,2]
[422848400,1779522645000,-151.0,8.493e-05,2]
[422848451,1779522645000,-3822.56,8.493e-05,2]
[422848441,1779522645000,-2370.66,8.493e-05,2]
[422848415,1779522645000,-500.0,8.493e-05,2]
[422848622,1779522645000,-222.49350747,8.5e-05,7]
[422848543,1779522645000,-4472.53,8.493e-05,2]
[422848598,1779522645000,-1014.97,8.493e-05,2]
[422848589,1779522645000,-500.0,8.493e-05,2]
[422848559,1779522645000,-2218.95,8.493e-05,2]
[422848555,1779522645000,-500.0,8.493e-05,2]
[422848616,1779522645000,-500.0,8.493e-05,2]
[422848475,1779522645000,-1534.57,8.493e-05,2]
[422848547,1779522645000,-500.0,8.493e-05,2]
[422848501,1779522645000,-2635.18,8.493e-05,2]
[422848517,1779522645000,-617.86,8.493e-05,2]
[422848533,1779522645000,-500.0,8.493e-05,2]
[422848549,1779522645000,-500.0,8.493e-05,2]
[422848571,1779522645000,-500.0,8.493e-05,2]
[422848422,1779522645000,-1096.02,8.493e-05,2]
[422848426,1779522645000,-725.61,8.493e-05,2]
[422848428,1779522645000,-500.0,8.493e-05,2]
[422848471,1779522645000,-647.49,8.493e-05,2]
[422848481,1779522645000,-500.0,8.493e-05,2]
[422848527,1779522645000,-3408.86,8.493e-05,2]
[422848447,1779522645000,-950.0,8.493e-05,2]
[422848483,1779522645000,-500.0,8.493e-05,2]
[422848445,1779522645000,-500.0,8.493e-05,2]
[422848410,1779522645000,-500.0,8.493e-05,2]
[422848406,1779522645000,-500.0,8.493e-05,2]
[422848561,1779522645000,-500.0,8.493e-05,2]
[422848397,1779522645000,-151.0,8.493e-05,2]
[422848420,1779522645000,-500.0,8.493e-05,2]
[422848430,1779522645000,-500.0,8.493e-05,2]
[422848438,1779522645000,-500.0,8.493e-05,2]
[422848455,1779522645000,-500.0,8.493e-05,2]
[422848457,1779522645000,-919.44,8.493e-05,2]
[422848473,1779522645000,-500.0,8.493e-05,2]
[422848477,1779522645000,-232.36446785,8.493e-05,2]
[422848497,1779522645000,-1016.89,8.493e-05,2]
[422848519,1779522645000,-7788.78,8.493e-05,2]
[422848594,1779522645000,-500.0,8.493e-05,2]
[422848414,1779522645000,-2184.12,8.493e-05,2]
[422848604,1779522645000,-500.0,8.493e-05,2]
[422848624,1779522645000,-765.91000044,8.6e-05,2]
[422848424,1779522645000,-1342.2,8.493e-05,2]
[422848495,1779522645000,-500.0,8.493e-05,2]
[422848507,1779522645000,-500.0,8.493e-05,2]
[422848512,1779522645000,-3777.66,8.493e-05,2]
[422848545,1779522645000,-500.0,8.493e-05,2]
[422848600,1779522645000,-4349.05,8.493e-05,2]
[422848608,1779522645000,-2740.95,8.493e-05,2]
[422848521,1779522645000,-500.0,8.493e-05,2]
[422848535,1779522645000,-836.05,8.493e-05,2]
[422848531,1779522645000,-894.62,8.493e-05,2]
[422848583,1779522645000,-500.0,8.493e-05,2]
[422848620,1779522645000,-500.0,8.5e-05,2]
[422848575,1779522645000,-560.81,8.493e-05,2]
[422848469,1779522645000,-500.0,8.493e-05,2]
[422848585,1779522645000,-500.0,8.493e-05,2]
[422848529,1779522645000,-500.0,8.493e-05,2]
[422848569,1779522645000,-4331.31,8.493e-05,2]
[422848612,1779522645000,-10300.39,8.493e-05,2]
[422848402,1779522645000,-1317.26,8.493e-05,2]
[422848459,1779522645000,-500.0,8.493e-05,2]
[422848465,1779522645000,-500.0,8.493e-05,2]
[422848491,1779522645000,-11669.11,8.493e-05,2]
[422848525,1779522645000,-1214.59,8.493e-05,2]
[422848408,1779522645000,-500.0,8.493e-05,2]
[422848432,1779522645000,-500.0,8.493e-05,2]
[422848453,1779522645000,-500.0,8.493e-05,2]
[422848487,1779522645000,-592.52,8.493e-05,2]
[422848537,1779522645000,-500.0,8.493e-05,2]
[422848551,1779522645000,-8299.03,8.493e-05,2]
[422848563,1779522645000,-1573.6,8.493e-05,2]
[422848514,1779522645000,-500.0,8.493e-05,2]
[422848565,1779522645000,-500.0,8.493e-05,2]
[422848557,1779522645000,-500.0,8.493e-05,2]
[422848593,1779522645000,-3345.98,8.493e-05,2]
[422848602,1779522645000,-500.0,8.493e-05,2]
[422848614,1779522645000,-7149.48,8.493e-05,2]
[422848395,1779522645000,-151.0,8.493e-05,2]
[422848581,1779522645000,-8529.45,8.493e-05,2]
[422848461,1779522645000,-500.0,8.493e-05,2]
[422848587,1779522645000,-53596.31,8.493e-05,2]
[422848516,1779522645000,-1889.65,8.493e-05,2]
[422848493,1779522645000,-1407.6,8.493e-05,2]
[422848404,1779522645000,-500.0,8.493e-05,2]
[422848434,1779522645000,-7319.6,8.493e-05,2]
[422848436,1779522645000,-5006.38,8.493e-05,2]
[422848596,1779522645000,-500.0,8.493e-05,2]
[422848505,1779522645000,-500.0,8.493e-05,2]
[422848443,1779522645000,-500.0,8.493e-05,2]
[422848449,1779522645000,-1906.95,8.493e-05,2]
[422848489,1779522645000,-3632.74,8.493e-05,2]
[422848499,1779522645000,-500.0,8.493e-05,2]
[422848509,1779522645000,-2296.31,8.493e-05,2]
[422848523,1779522645000,-3810.6,8.493e-05,2]
[422848539,1779522645000,-11343.66,8.493e-05,2]
[422848553,1779522645000,-4054.65,8.493e-05,2]
[422848567,1779522645000,-500.0,8.493e-05,2]
[422848577,1779522645000,-2034.71,8.493e-05,2]
[422848610,1779522645000,-891.69,8.493e-05,2]
[422848412,1779522645000,-568.59,8.493e-05,2]
[422848618,1779522645000,-500.0,8.493e-05,2]
[422848541,1779522645000,-500.0,8.493e-05,2]
[422848503,1779522645000,-3803.04,8.493e-05,2]
[422848485,1779522645000,-1298.03,8.493e-05,2]
[422848479,1779522645000,-762.05,8.493e-05,2]
[422848606,1779522645000,-1491.3,8.493e-05,2]
[422848591,1779522645000,-500.0,8.493e-05,2]
[422848579,1779522645000,-698.28,8.493e-05,2]
[422848573,1779522645000,-3166.04,8.493e-05,2]
[422848467,1779522645000,-384.31921153,8.493e-05,2]
[422848463,1779522645000,-642.13,8.493e-05,2]
[422848418,1779522645000,-516.78,8.493e-05,2]
[422848626,1779522646000,-209.3078,8.63e-05,2]
[422848663,1779522646000,-500.0,8.767e-05,2]
[422848635,1779522646000,-720.0,8.75e-05,2]
[422848666,1779522646000,-500.0,8.767e-05,2]
[422848703,1779522646000,-500.0,8.767e-05,2]
[422848643,1779522646000,-656.2399,8.767e-05,2]
[422848680,1779522646000,-500.0,8.767e-05,2]
[422848628,1779522646000,-1152.0,8.641e-05,2]
[422848630,1779522646000,-4278.48038439,8.695e-05,21]
[422848647,1779522646000,-546.66,8.767e-05,2]
[422848694,1779522646000,-670.18,8.767e-05,2]
[422848653,1779522646000,-521.15,8.767e-05,2]
[422848676,1779522646000,-531.93,8.767e-05,2]
[422848645,1779522646000,-500.0,8.767e-05,2]
[422848688,1779522646000,-500.0,8.767e-05,2]
[422848707,1779522646000,-511.26,8.767e-05,2]
[422848637,1779522646000,-1022.30135835,8.761e-05,7]
[422848649,1779522646000,-805.78,8.767e-05,2]
[422848672,1779522646000,-500.0,8.767e-05,2]
[422848677,1779522646000,-500.0,8.767e-05,2]
[422848682,1779522646000,-500.0,8.767e-05,2]
[422848679,1779522646000,-1159.16,8.767e-05,2]
[422848661,1779522646000,-550.5,8.767e-05,2]
[422848655,1779522646000,-1669.62,8.767e-05,2]
[422848698,1779522646000,-500.0,8.767e-05,2]
[422848641,1779522646000,-623.93,8.767e-05,2]
[422848697,1779522646000,-500.0,8.767e-05,2]
[422848644,1779522646000,-1095.0348,8.767e-05,2]
[422848670,1779522646000,-500.0,8.767e-05,2]
[422848701,1779522646000,-549.31,8.767e-05,2]
[422848705,1779522646000,-684.52,8.767e-05,2]
[422848708,1779522646000,-1188.89,8.767e-05,2]
[422848714,1779522646000,-924.25,8.767e-05,2]
[422848642,1779522646000,-500.0,8.767e-05,2]
[422848700,1779522646000,-760.63,8.767e-05,2]
[422848696,1779522646000,-500.0,8.767e-05,2]
[422848710,1779522646000,-500.0,8.767e-05,2]
[422848683,1779522646000,-500.0,8.767e-05,2]
[422848717,1779522646000,-500.0,8.767e-05,2]
[422848686,1779522646000,-500.0,8.767e-05,2]
[422848687,1779522646000,-500.0,8.767e-05,2]
[422848695,1779522646000,-1659.56,8.767e-05,2]
[422848709,1779522646000,-500.0,8.767e-05,2]
[422848712,1779522646000,-1397.34,8.767e-05,2]
[422848713,1779522646000,-500.0,8.767e-05,2]
[422848651,1779522646000,-500.0,8.767e-05,2]
[422848692,1779522646000,-500.0,8.767e-05,2]
[422848693,1779522646000,-186.82766559,8.767e-05,2]
[422848715,1779522646000,-1873.78,8.767e-05,2]
[422848668,1779522646000,-500.0,8.767e-05,2]
[422848674,1779522646000,-1019.6,8.767e-05,2]
[422848657,1779522646000,-521.99,8.767e-05,2]
[422848664,1779522646000,-973.74,8.767e-05,2]
[422848734,1779522646000,-1044.87,8.767e-05,2]
[422848750,1779522646000,-936.85,8.767e-05,2]
[422848720,1779522646000,-500.0,8.767e-05,2]
[422848723,1779522646000,-3836.07,8.767e-05,2]
[422848729,1779522646000,-500.0,8.767e-05,2]
[422848745,1779522646000,-500.0,8.767e-05,2]
[422848719,1779522646000,-2455.94,8.767e-05,2]
[422848732,1779522646000,-500.0,8.767e-05,2]
[422848736,1779522646000,-553.08,8.767e-05,2]
[422848747,1779522646000,-627.4,8.767e-05,2]
[422848724,1779522646000,-500.0,8.767e-05,2]
[422848727,1779522646000,-500.0,8.767e-05,2]
[422848735,1779522646000,-500.0,8.767e-05,2]
[422848722,1779522646000,-930.87,8.767e-05,2]
[422848731,1779522646000,-500.0,8.767e-05,2]
[422848748,1779522646000,-500.0,8.767e-05,2]
[422848741,1779522646000,-583.52,8.767e-05,2]
[422848743,1779522646000,-500.0,8.767e-05,2]
[422848744,1779522646000,-700.31,8.767e-05,2]
[422848755,1779522646000,-500.0,8.767e-05,2]
[422848754,1779522646000,-549.99,8.767e-05,2]
[422848730,1779522646000,-500.0,8.767e-05,2]
[422848690,1779522646000,-500.0,8.767e-05,2]
[422848753,1779522646000,-603.47,8.767e-05,2]
[422848751,1779522646000,-500.0,8.767e-05,2]
[422848740,1779522646000,-773.34,8.767e-05,2]
[422848725,1779522646000,-500.0,8.767e-05,2]
[422848746,1779522646000,-880.84,8.767e-05,2]
[422848646,1779522646000,-500.0,8.767e-05,2]
[422848659,1779522646000,-500.0,8.767e-05,2]
[422848639,1779522646000,-934.38,8.767e-05,2]
[422848633,1779522646000,-294.0248666,8.701e-05,21]
[422848685,1779522646000,-1237.95,8.767e-05,2]
[422848689,1779522646000,-500.0,8.767e-05,2]
[422848691,1779522646000,-551.16,8.767e-05,2]
[422848702,1779522646000,-1624.28,8.767e-05,2]
[422848704,1779522646000,-1479.12,8.767e-05,2]
[422848706,1779522646000,-500.0,8.767e-05,2]
[422848711,1779522646000,-500.0,8.767e-05,2]
[422848716,1779522646000,-500.0,8.767e-05,2]
[422848733,1779522646000,-3771.01,8.767e-05,2]
[422848728,1779522646000,-500.0,8.767e-05,2]
[422848742,1779522646000,-500.0,8.767e-05,2]
[422848749,1779522646000,-1170.48,8.767e-05,2]
[422848737,1779522646000,-848.75,8.767e-05,2]
[422848756,1779522646000,-2347.77,8.767e-05,2]
[422848752,1779522646000,-903.24,8.767e-05,2]
[422848726,1779522646000,-1062.36,8.767e-05,2]
[422848721,1779522646000,-500.0,8.767e-05,2]
[422848739,1779522646000,-500.0,8.767e-05,2]
[422848738,1779522646000,-1941.31,8.767e-05,2]
[422848718,1779522646000,-500.0,8.767e-05,2]
[422848844,1779522647000,-500.0,8.767e-05,2]
[422848771,1779522647000,-823.17,8.767e-05,2]
[422848845,1779522647000,-4472.53,8.767e-05,2]
[422848818,1779522647000,-3632.74,8.767e-05,2]
[422848820,1779522647000,-1407.6,8.767e-05,2]
[422848827,1779522647000,-500.0,8.767e-05,2]
[422848829,1779522647000,-3777.66,8.767e-05,2]
[422848843,1779522647000,-11343.66,8.767e-05,2]
[422848842,1779522647000,-500.0,8.767e-05,2]
[422848800,1779522647000,-1906.95,8.767e-05,2]
[422848779,1779522647000,-500.0,8.767e-05,2]
[422848792,1779522647000,-500.0,8.767e-05,2]
[422848793,1779522647000,-7319.6,8.767e-05,2]
[422848799,1779522647000,-950.0,8.767e-05,2]
[422848825,1779522647000,-3803.04,8.767e-05,2]
[422848760,1779522647000,-360.78248467,8.767e-05,2]
[422848765,1779522647000,-500.0,8.767e-05,2]
[422848777,1779522647000,-1317.26,8.767e-05,2]
[422848809,1779522647000,-500.0,8.767e-05,2]
[422848778,1779522647000,-500.0,8.767e-05,2]
[422848757,1779522647000,-500.0,8.767e-05,2]
[422848775,1779522647000,-825.75,8.767e-05,2]
[422848798,1779522647000,-500.0,8.767e-05,2]
[422848831,1779522647000,-1889.65,8.767e-05,2]
[422848785,1779522647000,-516.78,8.767e-05,2]
[422848774,1779522647000,-2784.25,8.767e-05,2]
[422848794,1779522647000,-5006.38,8.767e-05,2]
[422848796,1779522647000,-2370.66,8.767e-05,2]
[422848804,1779522647000,-919.44,8.767e-05,2]
[422848828,1779522647000,-2296.31,8.767e-05,2]
[422848838,1779522647000,-500.0,8.767e-05,2]
[422848839,1779522647000,-894.62,8.767e-05,2]
[422848840,1779522647000,-836.05,8.767e-05,2]
[422848761,1779522647000,-500.0,8.767e-05,2]
[422848795,1779522647000,-500.0,8.767e-05,2]
[422848814,1779522647000,-500.0,8.767e-05,2]
[422848808,1779522647000,-500.0,8.767e-05,2]
[422848837,1779522647000,-3408.86,8.767e-05,2]
[422848819,1779522647000,-11669.11,8.767e-05,2]
[422848834,1779522647000,-391.72986562,8.767e-05,2]
[422848833,1779522647000,-7788.78,8.767e-05,2]
[422848767,1779522647000,-500.0,8.767e-05,2]
[422848766,1779522647000,-588.33,8.767e-05,2]
[422848790,1779522647000,-500.0,8.767e-05,2]
[422848813,1779522647000,-762.05,8.767e-05,2]
[422848841,1779522647000,-500.0,8.767e-05,2]
[422848810,1779522647000,-647.49,8.767e-05,2]
[422848816,1779522647000,-1298.03,8.767e-05,2]
[422848836,1779522647000,-3810.6,8.767e-05,2]
[422848789,1779522647000,-725.61,8.767e-05,2]
[422848815,1779522647000,-500.0,8.767e-05,2]
[422848832,1779522647000,-617.86,8.767e-05,2]
[422848762,1779522647000,-500.0,8.767e-05,2]
[422848787,1779522647000,-1096.02,8.767e-05,2]
[422848763,1779522647000,-532.29,8.767e-05,2]
[422848769,1779522647000,-500.0,8.767e-05,2]
[422848803,1779522647000,-500.0,8.767e-05,2]
[422848848,1779522647000,-500.0,8.767e-05,2]
[422848851,1779522647000,-500.0,8.767e-05,2]
[422848784,1779522647000,-500.0,8.767e-05,2]
[422848780,1779522647000,-360.39886742,8.767e-05,2]
[422848805,1779522647000,-500.0,8.767e-05,2]
[422848806,1779522647000,-500.0,8.767e-05,2]
[422848812,1779522647000,-1534.57,8.767e-05,2]
[422848811,1779522647000,-500.0,8.767e-05,2]
[422848826,1779522647000,-500.0,8.767e-05,2]
[422848791,1779522647000,-500.0,8.767e-05,2]
[422848802,1779522647000,-500.0,8.767e-05,2]
[422848835,1779522647000,-1214.59,8.767e-05,2]
[422848853,1779522647000,-2218.95,8.767e-05,2]
[422848822,1779522647000,-1016.89,8.767e-05,2]
[422848783,1779522647000,-2184.12,8.767e-05,2]
[422848782,1779522647000,-568.59,8.767e-05,2]
[422848768,1779522647000,-500.0,8.767e-05,2]
[422848764,1779522647000,-500.0,8.767e-05,2]
[422848776,1779522647000,-2673.23,8.767e-05,2]
[422848773,1779522647000,-500.0,8.767e-05,2]
[422848807,1779522647000,-642.13,8.767e-05,2]
[422848824,1779522647000,-2635.18,8.767e-05,2]
[422848823,1779522647000,-500.0,8.767e-05,2]
[422848758,1779522647000,-601.61,8.767e-05,2]
[422848781,1779522647000,-500.0,8.767e-05,2]
[422848788,1779522647000,-1342.2,8.767e-05,2]
[422848797,1779522647000,-419.37021433,8.767e-05,2]
[422848817,1779522647000,-592.52,8.767e-05,2]
[422848830,1779522647000,-500.0,8.767e-05,2]
[422848772,1779522647000,-500.0,8.767e-05,2]
[422848846,1779522647000,-500.0,8.767e-05,2]
[422848852,1779522647000,-500.0,8.767e-05,2]
[422848770,1779522647000,-500.0,8.767e-05,2]
[422848786,1779522647000,-500.0,8.767e-05,2]
[422848801,1779522647000,-3822.56,8.767e-05,2]
[422848821,1779522647000,-500.0,8.767e-05,2]
[422848847,1779522647000,-500.0,8.767e-05,2]
[422848850,1779522647000,-4054.65,8.767e-05,2]
[422848849,1779522647000,-8299.03,8.767e-05,2]
[422848759,1779522647000,-1062.93,8.767e-05,2]
[422848866,1779522648000,-500.0,8.767e-05,2]
[422848920,1779522648000,-160.0,8.991e-05,2]
[422848907,1779522648000,-1408.295291,8.987e-05,2]
[422848888,1779522648000,-262.538459,8.946e-05,2]
[422848886,1779522648000,-474.57932805,8.904e-05,2]
[422848889,1779522648000,-365.076919,8.946e-05,2]
[422848940,1779522648000,-536.136172,9.032e-05,2]
[422848895,1779522648000,-12472.1106,8.946e-05,2]
[422848936,1779522648000,-474.57932805,9.014e-05,2]
[422848883,1779522648000,-474.57932805,8.877e-05,2]
[422848860,1779522648000,-3166.04,8.767e-05,2]
[422848885,1779522648000,-151.0,8.893e-05,2]
[422848938,1779522648000,-160.0,9.032e-05,2]
[422848926,1779522648000,-160.0,8.991e-05,2]
[422848856,1779522648000,-500.0,8.767e-05,2]
[422848857,1779522648000,-500.0,8.767e-05,2]
[422848906,1779522648000,-160.0,8.987e-05,2]
[422848923,1779522648000,-160.0,8.991e-05,2]
[422848925,1779522648000,-3039.746823,8.991e-05,2]
[422848872,1779522648000,-500.0,8.767e-05,2]
[422848871,1779522648000,-500.0,8.767e-05,2]
[422848881,1779522648000,-500.0,8.767e-05,2]
[422848894,1779522648000,-6316.0553,8.946e-05,2]
[422848855,1779522648000,-1573.6,8.767e-05,2]
[422848930,1779522648000,-598.454057,8.991e-05,2]
[422848916,1779522648000,-160.0,8.991e-05,2]
[422848927,1779522648000,-227.141156,8.991e-05,2]
[422848897,1779522648000,-4354.922535,8.946e-05,2]
[422848869,1779522648000,-479.962836,8.767e-05,2]
[422848921,1779522648000,-1702.9768,8.991e-05,2]
[422848863,1779522648000,-698.28,8.767e-05,2]
[422848870,1779522648000,-3345.98,8.767e-05,2]
[422848892,1779522648000,-1128.675587,8.946e-05,2]
[422848931,1779522648000,-1036.908115,8.991e-05,2]
[422848859,1779522648000,-500.0,8.767e-05,2]
[422848861,1779522648000,-560.81,8.767e-05,2]
[422848873,1779522648000,-1014.97,8.767e-05,2]
[422848879,1779522648000,-891.69,8.767e-05,2]
[422848887,1779522648000,-160.0,8.946e-05,2]
[422848890,1779522648000,-160.0,8.946e-05,2]
[422848901,1779522648000,-5918.707345,8.946e-05,2]
[422848903,1779522648000,-474.57932805,8.959e-05,2]
[422848929,1779522648000,-160.0,8.991e-05,2]
[422848864,1779522648000,-8529.45,8.767e-05,2]
[422848876,1779522648000,-500.0,8.767e-05,2]
[422848893,1779522648000,-160.0,8.946e-05,2]
[422848896,1779522648000,-160.0,8.946e-05,2]
[422848910,1779522648000,-160.0,8.991e-05,2]
[422848912,1779522648000,-431.74115,8.991e-05,2]
[422848919,1779522648000,-4688.238276,8.991e-05,2]
[422848865,1779522648000,-500.0,8.767e-05,2]
[422848880,1779522648000,-10300.39,8.767e-05,2]
[422848934,1779522648000,-299.7817402,9e-05,2]
[422848858,1779522648000,-4331.31,8.767e-05,2]
[422848891,1779522648000,-644.337793,8.946e-05,2]
[422848928,1779522648000,-294.282312,8.991e-05,2]
[422848951,1779522648000,-666.713353,9.036e-05,2]
[422848868,1779522648000,-500.0,8.767e-05,2]
[422848986,1779522648000,-500.0,9.041e-05,2]
[422849002,1779522648000,-500.0,9.041e-05,2]
[422848962,1779522648000,-1095.0348,9.041e-05,2]
[422848979,1779522648000,-521.15,9.041e-05,2]
[422848982,1779522648000,-1669.62,9.041e-05,2]
[422849000,1779522648000,-1019.6,9.041e-05,2]
[422849001,1779522648000,-531.93,9.041e-05,2]
[422849007,1779522648000,-500.0,9.041e-05,2]
[422848955,1779522648000,-934.38,9.041e-05,2]
[422848983,1779522648000,-521.99,9.041e-05,2]
[422848991,1779522648000,-973.74,9.041e-05,2]
[422848958,1779522648000,-500.0,9.041e-05,2]
[422848996,1779522648000,-500.0,9.041e-05,2]
[422848997,1779522648000,-500.0,9.041e-05,2]
[422848954,1779522648000,-252.679737,9.036e-05,2]
[422848970,1779522648000,-546.66,9.041e-05,2]
[422848942,1779522648000,-912.272344,9.032e-05,2]